fUSD/lending_fUSD_20260307
["ID","MTS","AMOUNT","RATE_DAILY","PERIOD"]
[407863339,1772841634490,-243.0,0.00011341,2]
[407863340,1772841634512,-500.0,0.00011341,2]
[407863341,1772841634534,-500.0,0.00011341,2]
[407863342,1772841634555,-500.0,0.00011341,2]
[407863343,1772841634578,-193.72407298,0.00011341,2]
[407863344,1772841634600,-7892.035199,0.00011342,2]
[407863345,1772841634622,-10171.24072802,0.00012105,2]
[407863346,1772841662032,-19696.07927198,0.00012105,2]
[407863347,1772841662056,-303.92072802,0.00012385,2]
[407863348,1772841667919,7303.896756,7.945e-05,2]
[407863349,1772841681497,-300.0,0.00012104,2]
[407863350,1772841681520,-500.0,0.00012245,2]
[407863351,1772841681542,-696.07927198,0.00012385,2]
[407863352,1772841681565,-2500.0,0.00012385,2]
[407863353,1772841681587,-500.0,0.00012473,2]
[407863354,1772841681608,-155.21266272,0.00012475,2]
[407863355,1772841681631,-305.05958288,0.00012475,2]
[407863356,1772841681653,-500.0,0.00012475,2]
[407863357,1772841681675,-1200.0,0.00012477,2]
[407863358,1772841681697,-220.17920537,0.00012478,2]
[407863359,1772841681718,-150.0,0.00012484,2]
[407863360,1772841681740,-300.0,0.00012484,2]
[407863361,1772841681766,-12673.46927705,0.00012485,2]
[407863362,1772841693931,411.5692,0.00012385,2]
[407863363,1772841697534,6816.4747441,0.00012385,2]
[407863364,1772841699085,164.58908081,0.00012385,2]
[407863365,1772841702455,-4033.079,0.00012484,2]
[407863366,1772841702479,-274.77,0.00012484,2]
[407863367,1772841702506,-15692.151,0.00012485,2]
[407863368,1772841708300,193.58013528,0.0001,2]
[407863369,1772841716768,1106.32051035,0.00012385,2]
[407863370,1772841724009,-300.0,0.00012484,2]
[407863371,1772841724036,-19700.0,0.00012485,2]
[407863372,1772841735867,500.0,0.0001142,2]
[407863373,1772841735986,500.0,0.0001142,2]
[407863374,1772841736399,307.47632946,0.0001142,2]
[407863375,1772841736429,629.34631468,0.0001142,2]
[407863376,1772841736490,500.0,0.0001142,2]
[407863377,1772841736768,500.0,0.0001142,2]
[407863378,1772841737007,500.0,0.0001142,2]
[407863379,1772841737212,3674.14401571,0.00012385,2]
[407863380,1772841737261,500.0,8e-05,2]
[407863381,1772841737467,500.0,0.0001142,2]
[407863382,1772841737508,500.0,0.0001142,2]
[407863383,1772841737762,500.0,8e-05,2]
[407863384,1772841738017,500.0,0.0001142,2]
[407863385,1772841738066,500.0,0.0001142,2]
[407863386,1772841738181,500.0,8e-05,2]
[407863387,1772841738403,500.0,0.0001142,2]
[407863388,1772841738459,196.51966961,0.0001142,2]
[407863389,1772841738487,303.48033039,0.0001142,2]
[407863390,1772841738885,500.0,0.0001142,2]
[407863391,1772841738941,500.0,0.0001142,2]
[407863392,1772841739405,500.0,0.0001142,2]
[407863393,1772841739449,500.0,0.0001142,2]
[407863394,1772841739844,500.0,0.0001142,2]
[407863395,1772841740322,500.0,0.0001142,2]
[407863396,1772841740766,500.0,0.0001142,2]
[407863397,1772841741672,500.0,0.0001142,2]
[407863398,1772841741950,731.16835525,0.0001142,2]
[407863399,1772841742195,500.0,0.0001142,2]
[407863400,1772841742577,500.0,0.0001142,2]
[407863401,1772841743797,500.0,0.0001142,2]
[407863402,1772841745018,500.0,0.0001142,2]
[407863403,1772841745869,-151.0,0.00012482,2]
[407863404,1772841745903,-500.0,0.00012484,2]
[407863405,1772841745933,-500.0,0.00012484,2]
[407863406,1772841745963,-500.0,0.00012484,2]
[407863407,1772841745993,-500.0,0.00012484,2]
[407863408,1772841746023,-611.26861556,0.00012484,2]
[407863409,1772841746046,-200.0,0.00012485,2]
[407863410,1772841746074,-17037.73138444,0.00012485,2]
[407863411,1772841746158,500.0,0.0001142,2]
[407863412,1772841746215,500.0,0.0001142,2]
[407863413,1772841746546,500.0,0.0001142,2]
[407863414,1772841746814,500.0,8e-05,2]
[407863415,1772841746910,500.0,0.0001142,2]
[407863416,1772841747016,500.0,0.0001142,2]
[407863417,1772841747555,500.0,0.0001142,2]
[407863418,1772841747596,500.0,0.0001142,2]
[407863419,1772841748048,500.0,8e-05,2]
[407863420,1772841748103,500.0,0.0001142,2]
[407863421,1772841748283,478.42544591,0.0001142,2]
[407863422,1772841748318,500.0,0.0001142,2]
[407863423,1772841748518,500.0,8e-05,2]
[407863424,1772841748576,500.0,8e-05,2]
[407863425,1772841748769,500.0,0.0001142,2]
[407863426,1772841748975,500.0,0.0001142,2]
[407863427,1772841749035,500.0,8e-05,2]
[407863428,1772841749213,781.83967209,8e-05,2]
[407863429,1772841749245,239.744882,8e-05,2]
[407863430,1772841749275,260.255118,8e-05,2]
[407863431,1772841749551,500.0,8e-05,2]
[407863432,1772841749701,500.0,8e-05,2]
[407863433,1772841749874,500.0,8e-05,2]
[407863434,1772841749951,500.0,8e-05,2]
[407863435,1772841750017,500.0,8e-05,2]
[407863436,1772841750196,500.0,8e-05,2]
[407863437,1772841750358,-500.0,0.0001142,2]
[407863438,1772841750390,-500.0,0.0001142,2]
[407863439,1772841750424,-500.0,0.0001142,2]
[407863440,1772841750457,-500.0,0.0001142,2]
[407863441,1772841750624,503.46804252,8e-05,2]
[407863442,1772841750930,500.0,0.0001142,2]
[407863443,1772841751002,500.0,8e-05,2]
[407863444,1772841751092,500.0,0.0001142,2]
[407863445,1772841751261,500.0,8e-05,2]
[407863446,1772841751332,500.0,0.0001142,2]
[407863447,1772841751410,500.0,8e-05,2]
[407863449,1772841752112,500.0,0.0001142,2]
[407863450,1772841752371,500.0,8e-05,2]
[407863451,1772841752450,500.0,0.0001142,2]
[407863452,1772841752542,972.09263389,8e-05,2]
[407863453,1772841752607,24.44932359,0.0001142,2]
[407863454,1772841752714,500.0,8e-05,2]
[407863455,1772841752787,500.0,8e-05,2]
[407863456,1772841752831,500.0,8e-05,2]
[407863457,1772841753060,500.0,8e-05,2]
[407863458,1772841753174,500.0,8e-05,2]
[407863459,1772841753225,502.81395821,8e-05,2]
[407863460,1772841753314,500.0,8e-05,2]
[407863461,1772841753479,500.0,8e-05,2]
[407863462,1772841753734,500.0,8e-05,2]
[407863463,1772841753817,-475.55067641,0.0001142,2]
[407863464,1772841753889,-500.0,0.0001142,2]
[407863465,1772841754052,724.91460926,8e-05,2]
[407863466,1772841754232,500.0,8e-05,2]
[407863467,1772841754502,843.44401742,8e-05,2]
[407863468,1772841755815,500.0,8e-05,2]
[407863469,1772841756524,500.0,8e-05,2]
[407863470,1772841757007,500.0,8e-05,2]
[407863471,1772841757497,500.0,8e-05,2]
[407863472,1772841757970,500.0,8e-05,2]
[407863473,1772841758468,500.0,8e-05,2]
[407863474,1772841759034,500.0,8e-05,2]
[407863475,1772841762978,-500.0,0.00012477,2]
[407863476,1772841763014,-500.0,0.00012477,2]
[407863477,1772841763049,-500.0,0.00012477,2]
[407863478,1772841763084,-431.89121996,0.00012477,2]
[407863479,1772841763122,-18068.10878004,0.00012485,2]
[407863480,1772841778604,-20000.0,0.00012485,2]
[407863481,1772841781883,-20000.0,0.00012484,2]
[407863482,1772841782772,-1000.0,0.00012385,2]
[407863483,1772841782794,-9835.35438296,0.00012484,2]
[407863484,1772841782817,-300.0,0.00012484,2]
[407863485,1772841782840,-150.0,0.00012484,2]
[407863486,1772841782866,-8714.64561704,0.00012485,2]
[407863487,1772841787978,10000.01,7.945e-05,2]
[407863488,1772841788043,1150.033658,7.945e-05,2]
[407863489,1772841836103,-3580.67,0.00012307,2]
[407863490,1772841836126,-16419.33,0.00012385,2]
[407863491,1772841839015,-20000.0,0.00012385,2]
[407863492,1772841861172,-157.0,0.00010331,2]
[407863493,1772841861195,-500.0,0.00012373,2]
[407863494,1772841861218,-500.0,0.00012373,2]
[407863495,1772841861242,-500.0,0.00012373,2]
[407863496,1772841861265,-500.0,0.00012373,2]
[407863497,1772841861289,-300.0,0.00012384,2]
[407863498,1772841861315,-16092.1998,0.00012385,2]
[407863499,1772841861337,-1450.8002,0.00012385,2]
[407863500,1772841876682,-210.33,0.00012084,2]
[407863501,1772841879193,-1049.1998,0.00012385,2]
[407863502,1772841879230,-5000.0,0.00012385,2]
[407863503,1772841879265,-271.50227644,0.00012385,2]
[407863504,1772841879300,-501.87803648,0.00012473,2]
[407863505,1772841879337,-151.0,0.00012477,2]
[407863506,1772841879374,-151.0,0.00012477,2]
[407863507,1772841879411,-151.0,0.00012477,2]
[407863508,1772841879448,-151.0,0.00012477,2]
[407863509,1772841879673,-151.0,0.00012477,2]
[407863510,1772841879702,-151.0,0.00012477,2]
[407863511,1772841879727,-151.0,0.00012477,2]
[407863512,1772841879750,-151.0,0.00012477,2]
[407863513,1772841879775,-151.0,0.00012477,2]
[407863514,1772841879798,-151.0,0.00012477,2]
[407863515,1772841879822,-151.0,0.00012477,2]
[407863516,1772841879844,-300.0,0.00012483,2]
[407863517,1772841879871,-11216.41988708,0.00012485,2]
[407863520,1772841890380,166.65,0.000123,2]
[407863521,1772841908727,2000.0,0.00012385,2]
[407863522,1772841909717,318.03151824,0.00012373,2]
[407863523,1772841909991,500.0,0.00012373,2]
[407863524,1772841961332,300.0,0.00012384,2]
[407863525,1772841963523,267.0,0.00012384,2]
[407863526,1772842007148,150.0,0.00012229,2]
[407863527,1772842007346,150.0,0.00012229,120]
[407863528,1772842007708,200.0,0.00012229,2]
[407863530,1772842021470,300.0,0.00012384,2]
[407863532,1772842035330,500.0,0.0001142,2]
[407863533,1772842035418,500.0,0.0001142,2]
[407863534,1772842035552,522.40279201,0.0001142,2]
[407863535,1772842035821,500.0,0.0001142,2]
[407863536,1772842035941,500.0,0.0001142,2]
[407863537,1772842036074,500.0,0.0001142,2]
[407863538,1772842036147,275.0,0.0001142,2]
[407863539,1772842036483,500.0,0.0001142,2]
[407863540,1772842036555,500.0,0.0001142,2]
[407863541,1772842036736,500.0,0.0001142,2]
[407863542,1772842036851,500.0,0.0001142,2]
[407863543,1772842036916,80.26568975,0.0001142,2]
[407863544,1772842036972,419.73431025,0.0001142,2]
[407863545,1772842037063,500.0,0.0001142,2]
[407863546,1772842037259,500.0,0.0001142,2]
[407863547,1772842037322,500.0,0.0001142,2]
[407863548,1772842037392,500.0,0.0001142,2]
[407863549,1772842037732,500.0,0.0001142,2]
[407863550,1772842037797,500.0,0.0001142,2]
[407863551,1772842037864,500.0,0.0001142,2]
[407863552,1772842038188,500.0,0.0001142,2]
[407863553,1772842038260,500.0,0.0001142,2]
[407863554,1772842038329,500.0,0.0001142,2]
[407863555,1772842038714,500.0,8e-05,2]
[407863556,1772842038793,500.0,0.0001142,2]
[407863557,1772842039112,500.0,0.0001142,2]
[407863558,1772842039188,500.0,8e-05,2]
[407863559,1772842039394,500.0,0.0001142,2]
[407863560,1772842039510,900.0,0.0001142,2]
[407863561,1772842039596,500.0,0.0001142,2]
[407863562,1772842039694,500.0,0.0001142,2]
[407863563,1772842039867,180.27568975,0.0001142,2]
[407863564,1772842039929,319.72431025,0.0001142,2]
[407863565,1772842040006,900.0,0.0001142,2]
[407863566,1772842040082,500.0,8e-05,2]
[407863567,1772842040179,500.0,8e-05,2]
[407863568,1772842040253,500.0,0.0001142,2]
[407863569,1772842040356,612.21875506,8e-05,2]
[407863570,1772842040455,900.0,0.0001142,2]
[407863571,1772842040539,500.0,8e-05,2]
[407863572,1772842040716,500.0,8e-05,2]
[407863573,1772842040935,900.0,0.0001142,2]
[407863574,1772842041019,500.0,8e-05,2]
[407863575,1772842041183,500.0,0.0001142,2]
[407863576,1772842041778,500.0,8e-05,2]
[407863577,1772842041997,900.0,0.0001142,2]
[407863578,1772842042073,500.0,8e-05,2]
[407863579,1772842042157,500.0,0.0001142,2]
[407863580,1772842042382,468.06693469,8e-05,2]
[407863581,1772842042482,291.49605834,8e-05,2]
[407863582,1772842042602,900.0,0.0001142,2]
[407863583,1772842042724,500.0,8e-05,2]
[407863584,1772842042857,500.0,8e-05,2]
[407863585,1772842042951,900.0,0.0001142,2]
[407863586,1772842043069,500.0,8e-05,2]
[407863587,1772842043201,500.0,8e-05,2]
[407863588,1772842043294,900.0,0.0001142,2]
[407863589,1772842043380,500.0,8e-05,2]
[407863590,1772842043496,500.0,8e-05,2]
[407863591,1772842043671,900.0,0.0001142,2]
[407863592,1772842043780,808.23431004,8e-05,2]
[407863593,1772842043968,500.0,8e-05,2]
[407863594,1772842044081,900.0,0.0001142,2]
[407863595,1772842044190,500.0,0.0001142,2]
[407863596,1772842044263,400.27963162,8e-05,2]
[407863597,1772842044328,99.72036838,8e-05,2]
[407863598,1772842044424,500.0,0.0001142,2]
[407863599,1772842044497,973.79025239,0.0001142,2]
[407863600,1772842044578,900.0,0.0001142,2]
[407863601,1772842044664,500.0,0.0001142,2]
[407863602,1772842044748,500.0,8e-05,2]
[407863603,1772842044938,500.0,0.0001142,2]
[407863604,1772842045055,500.0,0.0001142,2]
[407863605,1772842045128,500.0,0.0001142,2]
[407863606,1772842045216,500.0,8e-05,2]
[407863607,1772842045310,500.0,0.0001142,2]
[407863608,1772842045400,900.0,0.0001142,2]
[407863609,1772842045486,500.0,0.0001142,2]
[407863610,1772842045571,500.0,8e-05,2]
[407863611,1772842045681,500.0,8e-05,2]
[407863612,1772842045964,500.0,8e-05,2]
[407863613,1772842046036,762.46089344,8e-05,2]
[407863614,1772842046499,500.0,8e-05,2]
[407863615,1772842047028,500.0,8e-05,2]
[407863616,1772842047395,692.95225901,8e-05,2]
[407863617,1772842047480,500.0,8e-05,2]
[407863618,1772842047614,900.0,8e-05,2]
[407863619,1772842047996,592.06673711,8e-05,2]
[407863620,1772842048122,900.0,8e-05,2]
[407863621,1772842048579,900.0,8e-05,2]
[407863622,1772842049106,900.0,8e-05,2]
[407863623,1772842049616,500.0,8e-05,2]
[407863624,1772842049861,900.0,8e-05,2]
[407863625,1772842049956,504.57236014,8e-05,2]
[407863626,1772842050046,447.9577503,8e-05,2]
[407863627,1772842050110,52.0422497,8e-05,2]
[407863628,1772842050187,500.0,8e-05,2]
[407863629,1772842050260,500.0,8e-05,2]
[407863630,1772842050370,900.0,8e-05,2]
[407863631,1772842050506,500.0,8e-05,2]
[407863632,1772842050587,500.0,8e-05,2]
[407863633,1772842050662,500.0,8e-05,2]
[407863635,1772842050885,900.0,8e-05,2]
[407863636,1772842051065,500.0,8e-05,2]
[407863637,1772842051135,500.0,8e-05,2]
[407863638,1772842051228,500.0,8e-05,2]
[407863639,1772842051331,900.0,8e-05,2]
[407863640,1772842051464,500.0,8e-05,2]
[407863641,1772842051540,500.0,8e-05,2]
[407863642,1772842051617,500.0,8e-05,2]
[407863643,1772842052240,900.0,8e-05,2]
[407863644,1772842052341,500.0,8e-05,2]
[407863645,1772842052424,347.9677503,8e-05,2]
[407863646,1772842052486,152.0322497,8e-05,2]
[407863647,1772842052558,500.0,8e-05,2]
[407863648,1772842052690,900.0,8e-05,2]
[407863649,1772842052790,998.02835675,8e-05,2]
[407863650,1772842052867,856.00555469,8e-05,2]
[407863651,1772842052944,500.0,8e-05,2]
[407863652,1772842053060,900.0,8e-05,2]
[407863653,1772842053239,500.0,8e-05,2]
[407863654,1772842053617,900.0,8e-05,2]
[407863655,1772842053812,500.0,8e-05,2]
[407863656,1772842053950,900.0,8e-05,2]
[407863657,1772842054139,500.0,8e-05,2]
[407863658,1772842054238,500.0,8e-05,2]
[407863659,1772842054317,1120.56214502,8e-05,2]
[407863660,1772842054427,273.38169384,8e-05,2]
[407863661,1772842054488,226.61830616,8e-05,2]
[407863662,1772842054585,500.0,8e-05,2]
[407863663,1772842054917,500.0,8e-05,2]
[407863664,1772842055109,500.0,8e-05,2]
[407863665,1772842055490,500.0,8e-05,2]
[407863666,1772842055623,500.0,8e-05,2]
[407863667,1772842055863,785.15693744,8e-05,2]
[407863668,1772842056076,500.0,8e-05,2]
[407863669,1772842056600,500.0,8e-05,2]
[407863670,1772842056944,1000.0,8e-05,2]
[407863671,1772842057096,500.0,8e-05,2]
[407863672,1772842057423,1000.0,8e-05,2]
[407863673,1772842057549,500.0,8e-05,2]
[407863674,1772842057921,1000.0,8e-05,2]
[407863675,1772842058011,536.47100001,8e-05,2]
[407863676,1772842058412,951.76375639,8e-05,2]
[407863677,1772842058471,48.23624361,8e-05,2]
[407863678,1772842058930,1000.0,8e-05,2]
[407863679,1772842059405,1000.0,8e-05,2]
[407863680,1772842059889,1000.0,8e-05,2]
[407863681,1772842060374,1000.0,8e-05,2]
[407863682,1772842060901,1000.0,8e-05,2]
[407863683,1772842061904,1000.0,8e-05,2]
[407863684,1772842063052,1000.0,8e-05,2]
[407863685,1772842063237,1000.0,8e-05,2]
[407863686,1772842063373,1000.0,8e-05,2]
[407863687,1772842064034,1172.97850576,8e-05,2]
[407863689,1772842086844,157.0,0.00010331,2]
[407863690,1772842089079,154.0,0.00010331,2]
[407863691,1772842147265,157.0,0.00010331,2]
[407863692,1772842149099,-1623.638989,0.00011361,2]
[407863693,1772842149119,-1200.0,0.00011419,2]
[407863694,1772842149140,-300.0,0.00011419,2]
[407863695,1772842149160,-300.0,0.00011419,2]
[407863696,1772842149181,-150.0,0.00011419,2]
[407863697,1772842149201,-300.0,0.00011419,2]
[407863698,1772842149222,-198.89531717,0.0001142,2]
[407863699,1772842149243,-900.0,0.0001142,2]
[407863700,1772842149263,-384.45317877,0.0001142,2]
[407863701,1772842202379,-300.0,0.00011419,2]
[407863702,1772842202457,-1200.0,0.00011419,2]
[407863703,1772842202526,-300.0,0.00011419,2]
[407863704,1772842202606,-1000.0,0.0001142,2]
[407863705,1772842202679,-1000.0,0.0001142,2]
[407863706,1772842202756,-842.28599826,0.0001142,2]
[407863707,1772842202839,-115.54682123,0.0001142,2]
[407863708,1772842203332,-500.0,0.0001142,2]
[407863709,1772842203407,-500.0,0.0001142,2]
[407863710,1772842203481,-500.0,0.0001142,2]
[407863711,1772842203558,-900.0,0.0001142,2]
[407863712,1772842203638,-500.0,0.0001142,2]
[407863713,1772842203717,-500.0,0.0001142,2]
[407863714,1772842203793,-500.0,0.0001142,2]
[407863715,1772842203868,-900.0,0.0001142,2]
[407863716,1772842204329,-500.0,0.0001142,2]
[407863717,1772842204404,-500.0,0.0001142,2]
[407863718,1772842204480,-500.0,0.0001142,2]
[407863719,1772842204555,-500.0,0.0001142,2]
[407863720,1772842204632,-500.0,0.0001142,2]
[407863721,1772842204702,-500.0,0.0001142,2]
[407863722,1772842204775,-500.0,0.0001142,2]
[407863723,1772842204845,-500.0,0.0001142,2]
[407863724,1772842204921,-500.0,0.0001142,2]
[407863725,1772842204988,-500.0,0.0001142,2]
[407863727,1772842208204,-243.0,0.0001142,2]
[407863728,1772842208275,-500.0,0.0001142,2]
[407863729,1772842208344,-500.0,0.0001142,2]
[407863730,1772842208415,-500.0,0.0001142,2]
[407863731,1772842208485,-500.0,0.0001142,2]
[407863732,1772842208554,-500.0,0.0001142,2]
[407863733,1772842208628,-500.0,0.0001142,2]
[407863734,1772842208697,-500.0,0.0001142,2]
[407863735,1772842208766,-500.0,0.0001142,2]
[407863736,1772842208835,-500.0,0.0001142,2]
[407863737,1772842208971,-1000.0,0.0001142,2]
[407863738,1772842209040,-500.0,0.0001142,2]
[407863739,1772842209113,-500.0,0.0001142,2]
[407863740,1772842209186,-1000.0,0.0001142,2]
[407863741,1772842209258,-500.0,0.0001142,2]
[407863742,1772842209329,-1000.0,0.0001142,2]
[407863743,1772842209405,-0.01,0.0001142,2]
[407863744,1772842210462,-999.99,0.0001142,2]
[407863745,1772842210531,-500.0,0.0001142,2]
[407863746,1772842210601,-1000.0,0.0001142,2]
[407863747,1772842210668,-500.0,0.0001142,2]
[407863748,1772842210741,-1000.0,0.0001142,2]
[407863749,1772842210809,-1000.0,0.0001142,2]
[407863750,1772842214918,-500.0,0.0001142,2]
[407863751,1772842214999,-1000.0,0.0001142,2]
[407863752,1772842215076,-500.0,0.0001142,2]
[407863753,1772842215143,-1000.0,0.0001142,2]
[407863754,1772842215213,-1000.0,0.0001142,2]
[407863755,1772842215282,-1000.0,0.0001142,2]
[407863756,1772842216354,-1000.0,0.0001142,2]
[407863757,1772842216429,-250.0,0.0001142,2]
[407863758,1772842216510,-166.96635769,0.0001142,2]
[407863759,1772842216592,-1600.0,0.00011652,2]
[407863760,1772842216676,-1500.0,0.000117,4]
[407863761,1772842217324,-3100.0,0.000118,4]
[407863762,1772842228283,277.44565961,0.0001132,2]
[407863771,1772842232261,-4600.0,0.000119,4]
[407863772,1772842232271,-500.0,0.00012373,2]
[407863773,1772842232281,-500.0,0.00012373,2]
[407863774,1772842232291,-500.0,0.00012373,2]
[407863775,1772842232300,-19321.4759,0.00012385,2]
[407863776,1772842232310,-1000.0,0.00012385,2]
[407863777,1772842232319,-2500.0,0.00012385,2]
[407863778,1772842232329,-1175.988,0.00012385,2]
[407863780,1772842232339,-1706.4322,0.00012385,2]
[407863782,1772842232349,-6749.3999,0.00012385,2]
[407863783,1772842232359,-2796.32609715,0.00012385,2]
[407863798,1772842232593,-8405.06313311,0.00012385,2]
[407863799,1772842232607,-500.0,0.00012473,2]
[407863800,1772842232616,-151.0,0.00012477,2]
[407863801,1772842232625,-151.0,0.00012477,2]
[407863802,1772842232635,-151.0,0.00012477,2]
[407863803,1772842232644,-151.0,0.00012477,2]
[407863804,1772842232659,-151.0,0.00012477,2]
[407863805,1772842232669,-151.0,0.00012477,2]
[407863806,1772842232679,-151.0,0.00012477,2]
[407863807,1772842232688,-151.0,0.00012477,2]
[407863808,1772842232698,-151.0,0.00012477,2]
[407863809,1772842232709,-151.0,0.00012477,2]
[407863810,1772842232718,-151.0,0.00012477,2]
[407863811,1772842232728,-255.0,0.00012481,2]
[407863812,1772842232737,-892084.45119825,0.00012485,2]
[407863813,1772842232749,-182248.90081869,0.00012485,2]
[407863814,1772842232760,-2113.449534,0.00012485,2]
[407863816,1772842238396,-277.44565959,0.00011847,2]
[407863817,1772842238405,-68.78343075,0.00012341,2]
[407863818,1772842238418,-131.21656925,0.00012341,2]
[407863819,1772842238427,-786.68711994,0.00012385,2]
[407863858,1772842243581,-277.44565959,0.00012373,2]
[407863859,1772842243594,-213.31288006,0.00012385,2]
[407863860,1772842243604,-1280.09306608,0.00012485,2]
[407863861,1772842243618,-1451.11449336,0.00012485,2]
[407863862,1772842243633,-722.8955016,0.00012485,2]
[407863879,1772842248618,-7892.035199,0.00012485,2]
[407863880,1772842337019,500.0,8e-05,2]
[407863881,1772842337414,500.0,8e-05,2]
[407863882,1772842337482,927.92732542,8e-05,2]
[407863883,1772842337856,500.0,8e-05,2]
[407863884,1772842338351,500.0,8e-05,2]
[407863885,1772842341631,500.0,8e-05,2]
[407863886,1772842342546,501.15119853,8e-05,2]
[407863887,1772842342746,500.0,8e-05,2]
[407863888,1772842343221,500.0,8e-05,2]
[407863889,1772842343319,500.0,8e-05,2]
[407863890,1772842343722,500.0,8e-05,2]
[407863891,1772842343803,500.0,8e-05,2]
[407863892,1772842344264,500.0,8e-05,2]
[407863893,1772842344340,576.36919382,8e-05,2]
[407863894,1772842344783,606.69026642,8e-05,2]
[407863895,1772842345097,500.0,8e-05,2]
[407863896,1772842345249,500.0,8e-05,2]
[407863897,1772842345704,500.0,8e-05,2]
[407863898,1772842345783,387.87201581,8e-05,2]
[407863899,1772842345847,112.12798419,8e-05,2]
[407863900,1772842345997,500.0,8e-05,2]
[407863901,1772842346172,500.0,8e-05,2]
[407863902,1772842346619,500.0,8e-05,2]
[407863903,1772842346785,500.0,8e-05,2]
[407863904,1772842346896,500.0,8e-05,2]
[407863905,1772842346977,500.0,8e-05,2]
[407863906,1772842347107,500.0,8e-05,2]
[407863907,1772842347259,500.0,8e-05,2]
[407863908,1772842347345,500.0,8e-05,2]
[407863909,1772842347446,500.0,8e-05,2]
[407863910,1772842347533,500.0,8e-05,2]
[407863911,1772842347643,500.0,8e-05,2]
[407863912,1772842347793,500.0,8e-05,2]
[407863913,1772842347876,500.0,8e-05,2]
[407863914,1772842347953,509.83106284,8e-05,2]
[407863915,1772842348020,500.0,8e-05,2]
[407863916,1772842348137,969.69450366,8e-05,2]
[407863917,1772842348445,500.0,8e-05,2]
[407863918,1772842348958,408.35644931,8e-05,2]
[407863919,1772842349017,91.64355069,8e-05,2]
[407863920,1772842349397,883.00395971,8e-05,2]
[407863921,1772842349478,500.0,8e-05,2]
[407863922,1772842350697,500.0,8e-05,2]
[407863923,1772842351176,500.0,8e-05,2]
[407863924,1772842352197,548.34653787,8e-05,2]
[407863925,1772842354989,606.04,8e-05,2]